Workbook

Sheet LABORALS
A1: NOM
A2: TIPUS CONTRACTE | I2: (*) Retribucions 2023 actualitzades amb l'increment del 2,5%
A3: DEDICACIÓ | C3: =IF(ValLAB!L20=3,"Posar dedicació 35 hores",IF(ValLAB!L20=4,"Posar dedicació a temps parcial","TP: posar les hores setmanals de dedicació / TC: posar 35 hores")) -> TP: posar les hores setmanals de dedicació / TC: posar 35 hores | F3: mesos | G3: dies | I3: (*) Actualització Base cotització Màx. i Min. I MEI amb efectes 1 de gener del 2024
A4: INICI VINCULACIÓ | D4: Periode | F4: =IF(B5=0,0,SUM(D66)) -> 0 | G4: =IF(B5=0,0,SUM(E66)) -> 0 | I4: (*) Actualització Increment retributiu 0,5% març 2024 (efectes retroactius 01 gener 2023)
A5: INICI CONTRACTE/PRORROGA | E5: FI CONTRACTE/PRORROGA | G5: 2024-12-31 | I5: (*) Actualització Increment retributiu 2% juliol 2024 (efectes retroactius 01 gener 2024)
A6: Grup: | B6: 1900-01-03 | E6: Nº TRIENNIS GRUP 1
A7: CLT: | E7: Nº TRIENNIS GRUP 2,3 o 4
A8: Nº Dies RD | B8: 20 | E8: IMPORT TRIENNIS | G8: =((G6*ValLAB!F3)+(G7*ValLAB!F4))*(B3/35)*ValLAB!M22 -> 0
A9: COST MENSUAL | F9: COST ANUAL
A10: Retribucions: | B10: =SUM(B11:B14) -> 0 | F10: Retribucions: | G10: =B10*12 -> 0
A11: Sou | B11: =(ValLAB!M16)*B3/35*ValLAB!M22 -> 0 | F11: Sou | G11: =B11*12 -> 0
A12: Millora | B12: =(ValLAB!N16)*B3/35*ValLAB!M22 -> 0 | F12: Millora | G12: =B12*12 -> 0
A13: Acord mesa | B13: =(ValLAB!P16)*B3/35*ValLAB!M22 -> 0 | F13: Acord mesa | G13: =B13*12 -> 0
A14: clt | B14: =ValLAB!M18*'LABORALS '!B3/35*ValLAB!M22 -> 0 | F14: clt | G14: =B14*12 -> 0
A16: Prorrata mensual extres | B16: =ValLAB!M16*2/12*B3/35*ValLAB!M22 -> 0 | F16: Prorrata extres | G16: =SUM(B16*12) -> 0
A17: Prorrata mensual triennis extres | B17: =G8*2/12*ValLAB!M22 -> 0 | F17: Prorrata triennis extres | G17: =SUM(B17*12) -> 0
A18: TOTAL PRORRATA | B18: =SUM(B16:B17) -> 0 | F18: TOTAL PRORRATA | G18: =SUM(B18*12) -> 0
A20: Triennis: | B20: =SUM(G8) -> 0 | F20: Triennis: | G20: =B20*12 -> 0
A22: TOTAL RETRIB. | B22: =SUM(B10+B18+B20) -> 0 | F22: TOTAL RETRIB. | G22: =SUM(G10+G18+G20) -> 0
A23: Indemnització RD | B23: =(((B10+B18+B20)*12)/365)*B8/12 -> 0 | F23: Indemnització RD | G23: =B23*12 -> 0
A24: Quota patronal | B24: =IF(B22>ValLAB!N10,ValLAB!N20*ValLAB!N10,B22*ValLAB!N20) -> 0 | F24: Quota patronal | G24: =B24*12 -> 0
A25: TOTAL COST | B25: =SUM(B22,B24) -> 0 | F25: TOTAL COST | G25: =SUM(B25*12) -> 0
F26: FONS CONTINGÈNCIA 2 % | G26: =IF(ValLAB!L20>2,0,G25*0%) -> 0
F27: Cost amb marge | G27: =SUM(G25*B48)+G25 -> 0
A28: COST PERIODE ACTUAL (PRORROGA) | F28: COST TOTAL VINCULACIÓ
A29: =CONCATENATE(B1," (",DAY(B5),"/",MONTH(B5),"/",YEAR(B5),"-",DAY(G5),"/",MONTH(G5),"/",YEAR(G5),")") -> (0/1/1900-31/12/2024) | F29: =CONCATENATE(B1," (",DAY(B4),"/",MONTH(B4),"/",YEAR(B4),"-",DAY(#REF!),"/",MONTH(#REF!),"/",YEAR(#REF!),")") -> 
B30: ACTUAL | C30: AMB ARROSEGAMENT
A31: Retribucions: | B31: =IF(B10=0,0,B10*(D66+(E66/30))) -> 0 | D31: =IF( (D68+E68+D69+E69)=0,0,B31) -> 0 | F31: Retribucions: | G31: =IF(B10=0,0,B10*(D65+E65/30)) -> 0
A33: TOTAL EXTRES: | B33: =SUM(B34:B35) -> 0 | D33: =SUM(D34:D35) -> 0 | F33: TOTAL EXTRES: | G33: =SUM(G34:G35) -> 0
A34: Extra juny | B34: =IF(B18=0," ",B18/2*(D66+(E66/30))) ->  | D34: =IF((D68+E68+D69+E69)=0,0,B18/2*(D68+E68/30)+B34) -> 0 | F34: Extra juny | G34: =IF(B18=0,0,B18/2*(D65+E65/30)) -> 0
A35: Extra desembre | B35: =IF(B18=0," ",(B18/2)*(D66+E66/30)) ->  | D35: =IF((D68+E68+D69+E69)=0,0,B18/2*(D69+E69/30)+B35) -> 0 | F35: Extra desembre | G35: =IF(B18=0,0,B18/2*(D65+E65/30)) -> 0
A37: Triennis: | B37: =IF(B20=0,0,B20*(D66+E66/30)) -> 0 | D37: =IF((D68+E68+D69+E69)=0,0,B37) -> 0 | F37: Triennis: | G37: =IF(B20=0,0,B20*(D65+E65/30)) -> 0
A39: TOTAL RETRIB. | B39: =IF(B31=0,0,SUM(B31+B33+B37)) -> 0 | D39: =SUM(D31+D33+D37) -> 0 | F39: TOTAL RETRIB. | G39: =SUM(G31+G33+G37) -> 0
A40: Indemnització RD | B40: =IF(B23=0,0,B23*(D66+E66/30)) -> 0 | D40: =IF((D68+E68+D69+E69)=0,0,B23*(D70+E70/30)+B40) -> 0 | F40: Indemnització RD | G40: =IF(B125=0,0,B23*(D65+E65/30)) -> 0
A41: Quota patronal | B41: =IF(B22>ValLAB!N10,B24*(D66+(E66/30)),B39*ValLAB!N20) -> 0 | D41: =IF((D68+E68+D69+E69)=0,0,B41) -> 0 | F41: Quota patronal | G41: =G39*ValLAB!N20 -> 0
A42: TOTAL COST | B42: =SUM(B39,B41) -> 0 | D42: =SUM(D39:D41) -> 0 | F42: TOTAL COST | G42: =SUM(G39:G41) -> 0
A43: FONS CONTINGÈNCIA 2 % | B43: =B42*0 -> 0
A44: Import L1 | B44: =B39 -> 0 | D44: =SUM(D39+D40) -> 0 | F44: Import L1 | G44: =SUM(G39+G40) -> 0
A45: Import L2 | B45: =SUM(B41) -> 0 | D45: =SUM(D41) -> 0 | F45: Import L2 | G45: =SUM(G41) -> 0
A47: COST AMB MARGE PERIODE ACTUAL | F47: Cost amb marge TOTAL VINCULACIÓ
A48: Marge | B48: 0.02
C49: Amb arrossegament
A50: Import L1 | B50: =SUM(B44)+(B44*$B$48) -> 0 | C50: Import L1 | D50: =SUM(D44)+(D44*$B$48) -> 0 | F50: Import L1 | G50: =SUM(G44)+(G44)*$B$48 -> 0
A51: Import L2 | B51: =SUM(B45+B45*$B$48) -> 0
A52: TOTAL | B52: =SUM(B50:B51) -> 0 | C52: Import L2 | D52: =SUM(D45+D45*$B$48) -> 0 | F52: Import L2 | G52: =SUM(G45+G45*$B$48) -> 0
A54: Cost amb marge i retallada PERIODE ACTUAL
B55: Retribucions | C55: Quota patronal
A56: Import aprox.Retallada 2014 | B56: =(B18/2)*(D71+E71/30) -> 0 | C56: =(B56*ValLAB!N20) -> 0 | F56: Retallades anteriors a 2014
B57: Sense arrossegament | D57: Amb arrossegament
A58: Import L1 | B58: =SUM(B44-B56)+(B44-B56)*$B$48 -> 0 | C58: Import L1 | D58: =IF((D68+E68+D69+E69)=0,0,(D44-B56)+(D44-B56)*$B$48) -> 0 | F58: Import L1 | G58: =SUM(G44-G56-B56)+(G44-G56-B56)*$B$48 -> 0
A59: Import L2 | B59: =SUM(B45-C56)+(B45-C56)*$B$48 -> 0 | C59: Import L2 | D59: =IF((D68+E68+D69+E69)=0,0,(D45-C56)+(D45-C56)*$B$48) -> 0 | F59: Import L2 | G59: =SUM(G45-C56+(G45-C56)*$B$48) -> 0
A60: TOTAL | B60: =SUM(B58:C59) -> 0 | C60: TOTAL | D60: =SUM(D58:D59) -> 0 | F60: TOTAL AMB RETALLADES | G60: =SUM(G58:G59) -> 0
A61: FONS CONTINGÈNCIA | B61: =SUM((B44-B56)+(B45))*3% -> 0 | C61: (sense marge) | F61: (INCLOSES ANTERIORS 2014)
A63: MERITACIÓ ARROSEGAMENT PAGUES
B64: DATA INICI | C64: DATA FI | D64: Nº MESOS | E64: Nº DIES
A65: TOTAL VINCULACIÓ | B65: =IF(B4=0," ",B4) ->  | C65: =IF(G5=0," ",G5) -> 2024-12-31 | D65: =IF((C65-B65)>0,'calcul dies'!L5,"ERROR DATES") ->  | E65: =IF((C65-B65)>0,'calcul dies'!N5," ") -> 
A66: PRORROGA | B66: =IF(B5=0," ",B5) ->  | C66: =IF(G5=0," ",G5) -> 2024-12-31 | D66: =IF((C66-B66)>0,'calcul dies'!L10,"ERROR DATES") ->  | E66: =IF((C66-B66)>0,'calcul dies'!N10," ") -> 
A67: MERITEN | C67: DATA FI | D67: NºMESOS | E67: Nº DIES
A68: de 01/07 a 30/06 | C68: =IF(G5=0," ",(G5)-1) -> 2024-12-30 | D68: =IF(B68=0,0,IF((C68-B68)>366,"ERROR DATA",IF((C68-B68)>0,'calcul dies'!L15,"ERR0R DATA "))) -> 0 | E68: =IF(B68=0,0,IF((C68-B68)>366," ",IF((C68-B68)>0,'calcul dies'!N15," "))) -> 0
A69: de 01/01 a 31/12 | C69: =IF(G5=0," ",(G5)-1) -> 2024-12-30 | D69: =IF(B69=0,0,IF((C69-B69)>366,"ERROR DATA",IF((C69-B69)>0,'calcul dies'!L20,"ERR0R DATA "))) -> 0 | E69: =IF(B69=0,0,IF((C69-B69)>366," ",IF((C69-B69)>0,'calcul dies'!N20," "))) -> 0
A70: Indemnització RD | C70: =IF(G5=0," ",(G5)-1) -> 2024-12-30 | D70: =IF(B70=0,0,IF((C70-B70)>366,"ERROR DATA",IF((C70-B70)>0,'calcul dies'!L25,"ERR0R DATA "))) -> 0 | E70: =IF(B70=0,0,IF((C70-B70)>366,"ERROR DATA",IF((C70-B70)>0,'calcul dies'!N25," "))) -> 0
A71: Període treballat al 2014 | C71: =IF(YEAR(G5)>2014,DATE(2014,12,31),IF(G5<>0,G5," ")) -> 2014-12-31 | D71: =IF(B71=0,0,IF((C71-B71)>366,"ERROR DATA",IF((C71-B71)>0,'calcul dies'!L30,"ERR0R DATA "))) -> 0 | E71: =IF(B71=0,0,IF((C71-B71)>366,"ERROR DATA",IF((C71-B71)>0,'calcul dies'!N30," "))) -> 0

Sheet Manual d'ús
A2: Què es aquest fitxer?
A3: És un simulador que us permet obtenir la distribució previsible de la despesa d'una contractació.
A5: Per a què serveix?
A6: Per a que el personal interessat en iniciar un procediment de contractació pugui preveure els costos de personal d'acord amb les seves necessitats.
A8: Com funciona?
A9: Heu d'emplenar els camps en blanc de la zona blava.
A11: Quin grup escollir?
A12: El grup depèn de les funcions que desenvolupi el/la treballador/a.
A13: A continuació us facilitem un quadre on es recullen les diferents possibilitats de manera resumida:
A14: Grup 1: | B14: Funcions de Llicenciats/des, Enginyers/es, Arquitectes i Doctors/es.
A15: Grup 2: | B15: Funcions de Diplomats/es, Enginyers/es Tècnics/ques
A16: Grup 3: | B16: Batxiller, FPII, CFGS.
A18: Quin complement de lloc de treball (CLT) escollir?
A19: El CLT és un dels 3 complements que intervenen en la retribució del personal laboral (sou i millora serien la resta).
A20: A les següents possibilitats podreu triar la que us interessi més:
A21: Grup 1: | B21: De la U (el mínim) a la A (el màxim).
A22: Grup 2: | B22: De la U a la D.
A23: Grup 3: | B23: De la U a la K.

Sheet ValLAB (hidden)
A2: Grups | B2: Sou mes | C2: Mll mes | D2: Acord mesa | E2: Hores extres | F2: trienni | H2: CLT mes | I2: Centre Liquidació | J2: Valor Seg_ Social | K2: Reduccions | M2: Tipus de contractes | N2: Centre Liq. | O2: % QP | P2: % RETRIB. | Q2: Indemnització
A3: 1 | B3: 2534.84 | C3: 16.86 | D3: 8.19 | E3: 11.54 | F3: 66.45 | G3: A | H3: 2829.5 | I3: 005-A | J3: 0.309 | K3: 1 | M3: LABORAL INDEFINIT | N3: 005-A | O3: 0.3198 | P3: 1 | Q3: no | R3: Increment 0,50 març 2024
A4: 2 | B4: 2206.63 | C4: 16.5 | D4: 8.19 | E4: 10.33 | F4: 55.57 | G4: A0 | H4: 2629.19 | I4: 006-A | J4: 0.321 | K4: 0.75 | M4: TEMPORAL VINCULAT A PROGRAMES FINANÇATS PER FONS EUROPEUS TC (35h) | N4: 006-A | O4: 0.3318 | P4: 1 | Q4: si
A5: 3 | B5: 1930.91 | C5: 16.85 | D5: 8.19 | E5: 9.12 | F5: 55.57 | G5: A1-no utilitzar | H5: 2502.3 | I5: 007-A | J5: 0.321 | K5: 0.6 | M5: TEMPORAL VINCULAT A PROGRAMES FINANÇATS PER FONS EUROPEUS TP (< 35h) | N5: 007-A | O5: 0.3318 | P5: 1 | Q5: si
A6: 4 | B6: 1599.17 | C6: 16.78 | D6: 8.19 | E6: 7.6 | F6: 55.57 | G6: B | H6: 2322.49 | I6: 005-D | J6: 0.366
G7: B0 | H7: 2268.13 | I7: 006-D | J7: 0.387
G8: B1 -no utilizar | I8: 007-D | J8: 0.388
G9: C | H9: 2041.29 | I9: 005-80 | J9: 0.309
A10: JULIOL 2024 INCREMENT 2% | G10: C0 | H10: 1720.95 | I10: 006-80 | J10: 0.321 | M10: Base màx.cotització 2024 | N10: 4720.5
G11: D | H11: 1505.32 | I11: 007-80 | J11: 0.331
G12: E | H12: 1143.03 | I12: 001-A | J12: 0.307
G13: F | H13: 1100.36 | I13: 002-A | J13: 0.252
A14: retribucions actualitzades amb l'increment previst 2024 | G14: G | H14: 950.29 | L14: Retribucions
G15: H | H15: 842.94 | L15: Grup | M15: Sou | N15: Millora | O15: Hora | P15: Acord mesa
G16: I | H16: 739.48 | L16: 2 | M16: =CHOOSE(L16,B3,B4,B5,B6) -> 2206.63 | N16: =CHOOSE(L16,C3,C4,C5,C6) -> 16.5 | O16: =CHOOSE(L16,E3,E4,E5,E6) -> 10.33 | P16: =CHOOSE(L16,D3,D4,D5,D6) -> 8.19
G17: J | H17: 628.21 | L17: CLT
G18: K | H18: 507.08 | L18: 29 | M18: =INDEX(H3:H32,L18) -> 101.1
G19: L | H19: 492.77 | L19: Centre de Liquidació-Epígraf | N19: % corresponent
G20: M | H20: 454.05 | L20: 2 | M20: =INDEX(N3:N5,L20) -> 006-A | N20: =INDEX(O3:O5,L20) -> 0.3318
A21: INDEMNITZACIONS | G21: M1-sols PQS | H21: 399.88 | L21: Reducció de retribucions (contracte en pràctiques)
A22: INDEFINIT | B22: 20 | G22: N | H22: 370.55 | L22: =L20 -> 2 | M22: =INDEX(P3:P5,L22) -> 1
A23: TEMPORAL | B23: 12 | G23: Ñ | H23: 350.28
A24: FORMATIU | B24: 0 | G24: O | H24: 306.78
G25: O1-sols PQS
G26: P | H26: 238.23
G27: Q | H27: 176.25
G28: R | H28: 163.16
G29: S | H29: 145.22
G30: T | H30: 116.75
G31: U | H31: 101.1
G32: V | H32: 47.46
A35: 2022
D37: Grup | J37: Grup
D38: 1 | E38: 2 | F38: 3 | G38: 4 | J38: 1 | K38: 2 | L38: 3 | M38: 4
A39: Sou base | D39: 2366.29 | E39: 2059.91 | F39: 1802.51 | G39: 1492.84 | I39: P.Perillositat | J39: 238.37 | K39: 198.67 | L39: 168.23 | M39: 128.98
A40: Millora | D40: 15.72 | E40: 15.39 | F40: 15.71 | G40: 15.65 | I40: Triennis | J40: 62.02 | K40: 51.87 | L40: 51.87 | M40: 51.87
A41: Acord Mesa universitats | D41: 7.62 | E41: 7.62 | F41: 7.62 | G41: 7.62 | I41: Hores extres | J41: 11.54 | K41: 10.33 | L41: 9.12 | M41: 7.6
B44: A | C44: 2641.36
B45: A0 | C45: 2454.35
B46: A1* | C46: 2335.9
B47: B | C47: 2168.07
B48: B0 | C48: 2117.3
B49: C | C49: 1905.56
B50: C0 | C50: 1606.49
B51: D | C51: 1405.23
B52: E | C52: 1067.02
B53: F | C53: 1027.19
B54: G | C54: 887.1
B55: H | C55: 786.88
B56: I | C56: 690.31
B57: J | C57: 586.42
B58: K | C58: 473.35
B59: L | C59: 459.99
B60: M | C60: 423.85
B61: M1* | C61: 373.27
B62: N | C62: 345.91
B63: Ñ | C63: 326.99
B64: O | C64: 286.37
B65: P | C65: 222.38
B66: Q | C66: 164.52
B67: R | C67: 152.31
B68: S | C68: 135.55
B69: T | C69: 108.98
B70: U | C70: 94.37
B71: V | C71: 44.28
A74: 2022-11-01
D75: Grup | J75: Grup
D76: 1 | E76: 2 | F76: 3 | G76: 4 | J76: 1 | K76: 2 | L76: 3 | M76: 4
A77: Sou base | D77: 2401.09 | E77: 2090.21 | F77: 1829.02 | G77: 1514.8 | I77: P.Perillositat | J77: 241.88 | K77: 201.6 | L77: 170.71 | M77: 130.88
A78: Millora | D78: 15.96 | E78: 15.62 | F78: 15.95 | G78: 15.89 | I78: Triennis | J78: 62.94 | K78: 52.64 | L78: 52.64 | M78: 52.64
A79: Acord Mesa universitats | D79: 7.74 | E79: 7.74 | F79: 7.74 | G79: 7.74 | I79: Hores extres | J79: 11.54 | K79: 10.33 | L79: 9.12 | M79: 7.6
A81: Complement de lloc de treball | B81: A | C81: 2680.21 | E81: 2747.21525
B82: A0 | C82: 2490.45 | E82: 2552.71125
B83: A1* | C83: 2370.26 | E83: 2429.5165
B84: B | C84: 2199.96 | E84: 2254.959
B85: B0 | C85: 2148.44 | E85: 2202.151
B86: C | C86: 1933.59 | E86: 1981.92975
B87: C0 | C87: 1630.12 | E87: 1670.873
B88: D | C88: 1425.9 | E88: 1461.5475
B89: E | C89: 1082.72 | E89: 1109.788
B90: F | C90: 1042.3 | E90: 1068.3575
B91: G | C91: 900.15 | E91: 922.65375
B92: H | C92: 798.46 | E92: 818.4215
B93: I | C93: 700.47 | E93: 717.98175
B94: J | C94: 595.05 | E94: 609.92625
B95: K | C95: 480.32 | E95: 492.328
B96: L | C96: 466.76 | E96: 478.429
B97: M | C97: 430.09 | E97: 440.84225
B98: M1* | C98: 378.76 | E98: 388.229
B99: N | C99: 351 | E99: 359.775
B100: Ñ | C100: 331.8 | E100: 340.095
B101: O | C101: 290.59 | E101: 297.85475
B102: P | C102: 225.66 | E102: 231.3015
B103: Q | C103: 166.94 | E103: 171.1135
B104: R | C104: 154.55 | E104: 158.41375
B105: S | C105: 137.55 | E105: 140.98875
B106: T | C106: 110.59 | E106: 113.35475
B107: U | C107: 95.76 | E107: 98.154
B108: V | C108: 44.94 | E108: 46.0635
A112: 2023-02-01 | B112: 0.025
D113: Grup | J113: Grup
D114: 1 | E114: 2 | F114: 3 | G114: 4 | J114: 1 | K114: 2 | L114: 3 | M114: 4
A115: Sou base | D115: =(D77*$B$112)+D77 -> 2461.11725 | E115: 2142.46525 | F115: 1874.7455 | G115: 1552.67 | I115: P.Perillositat | J115: =(J77*$B$112)+J77 -> 247.927 | K115: 206.64 | L115: 174.97775 | M115: 134.152
A116: Millora | D116: 16.359 | E116: 16.0105 | F116: 16.34875 | G116: 16.28725 | I116: Triennis | J116: 64.5135 | K116: 53.956 | L116: 53.956 | M116: 53.956
A117: Acord Mesa universitats | D117: =(D79*$B$112)+D79 -> 7.9335 | E117: =(E79*$B$112)+E79 -> 7.9335 | F117: 7.9335 | G117: 7.9335 | I117: Hores extres | J117: 11.54 | K117: 10.33 | L117: 9.12 | M117: 7.6
B120: A | C120: =(C81*$B$112)+C81 -> 2747.21525
B121: A0 | C121: =(C82*$B$112)+C82 -> 2552.71125
B122: A1* | C122: =(C83*$B$112)+C83 -> 2429.5165
B123: B | C123: =(C84*$B$112)+C84 -> 2254.959
B124: B0 | C124: 2202.151
B125: C | C125: 1981.92975
B126: C0 | C126: 1670.873
B127: D | C127: 1461.5475
B128: E | C128: 1109.788
B129: F | C129: 1068.3575
B130: G | C130: 922.65375
B131: H | C131: 818.4215
B132: I | C132: 717.98175
B133: J | C133: 609.92625
B134: K | C134: 492.328
B135: L | C135: 478.429
B136: M | C136: 440.84225
B137: M1* | C137: 388.229
B138: N | C138: 359.775
B139: Ñ | C139: 340.095
B140: O | C140: 297.85475
B141: P | C141: 231.3015
B142: Q | C142: 171.1135
B143: R | C143: 158.41375
B144: S | C144: 140.98875
B145: T | C145: 113.35475
B146: U | C146: 98.154
B147: V | C147: 46.0635
A151: 2023-11-01 | B151: 0.005 | C151: (retroactiu gener-23)
D154: Grup | J154: Grup
D155: 1 | E155: 2 | F155: 3 | G155: 4 | J155: 1 | K155: 2 | L155: 3 | M155: 4
A156: Sou base | D156: 2473.13 | E156: 2152.91 | F156: 1883.9 | G156: 1560.24 | I156: P.Perillositat | J156: 249.13 | K156: 207.64 | L156: 176.15 | M156: 134.81
A157: Millora | D157: 16.44 | E157: 16.09 | F157: 16.43 | G157: 16.37 | I157: Triennis | J157: 64.82 | K157: 54.21 | L157: 54.21 | M157: 54.21
A158: Acord Mesa universitats | D158: 7.98 | E158: 7.98 | F158: 7.98 | G158: 7.98 | I158: Hores extres | J158: 11.54 | K158: 10.33 | L158: 9.12 | M158: 7.6
B161: A | C161: 2760.62
B162: A0 | C162: 2565.17
B163: A1* | C163: 2441.37
B164: B | C164: 2265.95
B165: B0 | C165: 2212.9
B166: C | C166: 1991.59
B167: C0 | C167: 1679.04
B168: D | C168: 1468.68
B169: E | C169: 1115.2
B170: F | C170: 1073.57
B171: G | C171: 927.15
B172: H | C172: 822.42
B173: I | C173: 721.48
B174: J | C174: 612.91
B175: K | C175: 494.72
B176: L | C176: 480.77
B177: M | C177: 442.99
B178: M1* | C178: 390.13
B179: N | C179: 361.52
B180: Ñ | C180: 341.75
B181: O | C181: 299.3
B182: P | C182: 232.42
B183: Q | C183: 171.95
B184: R | C184: 159.19
B185: S | C185: 141.68
B186: T | C186: 113.9
B187: U | C187: 98.63
B188: V | C188: 46.29
A191: 2024-03-01 | B191: 0.5 | C191: (retroactiu gener -24)
D193: Grup | J193: Grup
D194: 1 | E194: 2 | F194: 3 | G194: 4 | J194: 1 | K194: 2 | L194: 3 | M194: 4
A195: Sou base | D195: 2485.13 | E195: 2163.36 | F195: 1893.04 | G195: 1567.81 | I195: P.Perillositat | J195: 250.34 | K195: 208.65 | L195: 177.01 | M195: 135.47
A196: Millora | D196: 16.52 | E196: 16.17 | F196: 16.51 | G196: 16.45 | I196: Triennis | J196: 65.14 | K196: 54.48 | L196: 54.48 | M196: 54.48
A197: Acord Mesa universitats | D197: 8.02 | E197: 8.02 | F197: 8.02 | G197: 8.02 | I197: Hores extres | J197: 11.54 | K197: 10.33 | L197: 9.12 | M197: 7.6
A200: Complement de lloc de treball | B200: A | C200: 2774.01
B201: A0 | C201: 2577.63
B202: A1* | C202: 2453.23
B203: B | C203: 2276.95
B204: B0 | C204: 2223.65
B205: C | C205: 2001.26
B206: C0 | C206: 1687.2
B207: D | C207: 1475.8
B208: E | C208: 1120.61
B209: F | C209: 1078.78
B210: G | C210: 931.65
B211: H | C211: 826.41
B212: I | C212: 724.98
B213: J | C213: 615.89
B214: K | C214: 497.13
B215: L | C215: 483.1
B216: M | C216: 445.14
B217: M1* | C217: 392.03
B218: N | C218: 363.28
B219: Ñ | C219: 343.41
B220: O | C220: 300.76
B221: P | C221: 233.55
B222: Q | C222: 172.79
B223: R | C223: 159.96
B224: S | C224: 142.37
B225: T | C225: 114.46
B226: U | C226: 99.11
... 35 more rows

Sheet ValLAB_antiga (hidden)
A2: Grups | B2: Sou mes | C2: Mll mes | D2: Acord mesa | E2: Hores extres | F2: trienni | H2: CLT mes | I2: Centre Liquidació | J2: Valor Seg_ Social | K2: Reduccions | M2: Tipus de contractes | N2: Centre Liq. | O2: % QP | P2: % RETRIB. | Q2: Indemnització
A3: 1 | B3: 2473.13 | C3: 16.44 | D3: 7.98 | E3: 11.54 | F3: 64.82 | G3: A | H3: 2760.62 | I3: 005-A | J3: 0.309 | K3: 1 | M3: LABORAL INDEFINIT | N3: 005-A | O3: 0.319 | P3: 1 | Q3: no
A4: 2 | B4: 2152.91 | C4: 16.09 | D4: 7.98 | E4: 10.33 | F4: 54.21 | G4: A0 | H4: 2565.17 | I4: 006-A | J4: 0.321 | K4: 0.75 | M4: TEMPORAL FORMATIU PER A LA PRÀCTICA PROFESSIONAL | N4: 005-A | O4: 0.319 | P4: 1 | Q4: no
A5: 3 | B5: 1883.9 | C5: 16.43 | D5: 7.98 | E5: 9.12 | F5: 54.21 | G5: A1-no utilitzar | H5: 2441.37 | I5: 007-A | J5: 0.321 | K5: 0.6 | M5: TEMPORAL VINCULAT A PROGRAMES FINANÇATS PER FONS EUROPEUS TC (35h) | N5: 006-A | O5: 0.331 | P5: 1 | Q5: si
A6: 4 | B6: 1560.24 | C6: 16.37 | D6: 7.98 | E6: 7.6 | F6: 54.21 | G6: B | H6: 2265.95 | I6: 005-D | J6: 0.366 | M6: TEMPORAL VINCULAT A PROGRAMES FINANÇATS PER FONS EUROPEUS TP (< 35h) | N6: 007-A | O6: 0.331 | P6: 1 | Q6: si
G7: B0 | H7: 2212.9 | I7: 006-D | J7: 0.387
G8: B1 -no utilizar | I8: 007-D | J8: 0.388
G9: C | H9: 1991.59 | I9: 005-80 | J9: 0.309
G10: C0 | H10: 1679.04 | I10: 006-80 | J10: 0.321 | M10: Base màx.cotizzció 2023 | N10: 4495.5
G11: D | H11: 1468.68 | I11: 007-80 | J11: 0.331
G12: E | H12: 1115.2 | I12: 001-A | J12: 0.307
G13: F | H13: 1073.57 | I13: 002-A | J13: 0.252
A14: retribucions actualitzades amb l'increment previst 2023 | G14: G | H14: 927.15 | L14: Retribucions
G15: H | H15: 822.42 | L15: Grup | M15: Sou | N15: Millora | O15: Hora | P15: Acord mesa
G16: I | H16: 721.48 | L16: 1 | M16: =CHOOSE(L16,B3,B4,B5,B6) -> 2473.13 | N16: =CHOOSE(L16,C3,C4,C5,C6) -> 16.44 | O16: =CHOOSE(L16,E3,E4,E5,E6) -> 11.54 | P16: =CHOOSE(L16,D3,D4,D5,D6) -> 7.98
G17: J | H17: 612.91 | L17: CLT
G18: K | H18: 494.72 | L18: 29 | M18: =INDEX(H3:H32,L18) -> 98.63
G19: L | H19: 480.77 | L19: Centre de Liquidació-Epígraf | N19: % corresponent
G20: M | H20: 442.99 | L20: 4 | M20: =INDEX(N3:N6,L20) -> 007-A | N20: =INDEX(O3:O6,L20) -> 0.331
G21: M1-sols PQS | H21: 390.13 | L21: Reducció de retribucions (contracte en pràctiques)
G22: N | H22: 361.52 | L22: =L20 -> 4 | M22: =INDEX(P3:P6,L22) -> 1
G23: Ñ | H23: 341.75
G24: O | H24: 299.3
G25: O1-sols PQS
G26: P | H26: 232.42
G27: Q | H27: 171.95
G28: R | H28: 159.19
G29: S | H29: 141.68
G30: T | H30: 113.9
G31: U | H31: 98.63
G32: V | H32: 46.29
A35: 2022
D37: Grup | J37: Grup
D38: 1 | E38: 2 | F38: 3 | G38: 4 | J38: 1 | K38: 2 | L38: 3 | M38: 4
A39: Sou base | D39: 2366.29 | E39: 2059.91 | F39: 1802.51 | G39: 1492.84 | I39: P.Perillositat | J39: 238.37 | K39: 198.67 | L39: 168.23 | M39: 128.98
A40: Millora | D40: 15.72 | E40: 15.39 | F40: 15.71 | G40: 15.65 | I40: Triennis | J40: 62.02 | K40: 51.87 | L40: 51.87 | M40: 51.87
A41: Acord Mesa universitats | D41: 7.62 | E41: 7.62 | F41: 7.62 | G41: 7.62 | I41: Hores extres | J41: 11.54 | K41: 10.33 | L41: 9.12 | M41: 7.6
B44: A | C44: 2641.36
B45: A0 | C45: 2454.35
B46: A1* | C46: 2335.9
B47: B | C47: 2168.07
B48: B0 | C48: 2117.3
B49: C | C49: 1905.56
B50: C0 | C50: 1606.49
B51: D | C51: 1405.23
B52: E | C52: 1067.02
B53: F | C53: 1027.19
B54: G | C54: 887.1
B55: H | C55: 786.88
B56: I | C56: 690.31
B57: J | C57: 586.42
B58: K | C58: 473.35
B59: L | C59: 459.99
B60: M | C60: 423.85
B61: M1* | C61: 373.27
B62: N | C62: 345.91
B63: Ñ | C63: 326.99
B64: O | C64: 286.37
B65: P | C65: 222.38
B66: Q | C66: 164.52
B67: R | C67: 152.31
B68: S | C68: 135.55
B69: T | C69: 108.98
B70: U | C70: 94.37
B71: V | C71: 44.28
A74: 2022-11-01
D75: Grup | J75: Grup
D76: 1 | E76: 2 | F76: 3 | G76: 4 | J76: 1 | K76: 2 | L76: 3 | M76: 4
A77: Sou base | D77: 2401.09 | E77: 2090.21 | F77: 1829.02 | G77: 1514.8 | I77: P.Perillositat | J77: 241.88 | K77: 201.6 | L77: 170.71 | M77: 130.88
A78: Millora | D78: 15.96 | E78: 15.62 | F78: 15.95 | G78: 15.89 | I78: Triennis | J78: 62.94 | K78: 52.64 | L78: 52.64 | M78: 52.64
A79: Acord Mesa universitats | D79: 7.74 | E79: 7.74 | F79: 7.74 | G79: 7.74 | I79: Hores extres | J79: 11.54 | K79: 10.33 | L79: 9.12 | M79: 7.6
A81: Complement de lloc de treball | B81: A | C81: 2680.21 | E81: 2747.21525
B82: A0 | C82: 2490.45 | E82: 2552.71125
B83: A1* | C83: 2370.26 | E83: 2429.5165
B84: B | C84: 2199.96 | E84: 2254.959
B85: B0 | C85: 2148.44 | E85: 2202.151
B86: C | C86: 1933.59 | E86: 1981.92975
B87: C0 | C87: 1630.12 | E87: 1670.873
B88: D | C88: 1425.9 | E88: 1461.5475
B89: E | C89: 1082.72 | E89: 1109.788
B90: F | C90: 1042.3 | E90: 1068.3575
B91: G | C91: 900.15 | E91: 922.65375
B92: H | C92: 798.46 | E92: 818.4215
B93: I | C93: 700.47 | E93: 717.98175
B94: J | C94: 595.05 | E94: 609.92625
B95: K | C95: 480.32 | E95: 492.328
B96: L | C96: 466.76 | E96: 478.429
B97: M | C97: 430.09 | E97: 440.84225
B98: M1* | C98: 378.76 | E98: 388.229
B99: N | C99: 351 | E99: 359.775
B100: Ñ | C100: 331.8 | E100: 340.095
B101: O | C101: 290.59 | E101: 297.85475
B102: P | C102: 225.66 | E102: 231.3015
B103: Q | C103: 166.94 | E103: 171.1135
B104: R | C104: 154.55 | E104: 158.41375
B105: S | C105: 137.55 | E105: 140.98875
B106: T | C106: 110.59 | E106: 113.35475
B107: U | C107: 95.76 | E107: 98.154
B108: V | C108: 44.94 | E108: 46.0635
A112: 2023-02-01 | B112: 0.025
D113: Grup | J113: Grup
D114: 1 | E114: 2 | F114: 3 | G114: 4 | J114: 1 | K114: 2 | L114: 3 | M114: 4
A115: Sou base | D115: =(D77*$B$112)+D77 -> 2461.11725 | E115: 2142.46525 | F115: 1874.7455 | G115: 1552.67 | I115: P.Perillositat | J115: =(J77*$B$112)+J77 -> 247.927 | K115: 206.64 | L115: 174.97775 | M115: 134.152
A116: Millora | D116: 16.359 | E116: 16.0105 | F116: 16.34875 | G116: 16.28725 | I116: Triennis | J116: 64.5135 | K116: 53.956 | L116: 53.956 | M116: 53.956
A117: Acord Mesa universitats | D117: =(D79*$B$112)+D79 -> 7.9335 | E117: 7.9335 | F117: 7.9335 | G117: 7.9335 | I117: Hores extres | J117: 11.54 | K117: 10.33 | L117: 9.12 | M117: 7.6
B120: A | C120: =(C81*$B$112)+C81 -> 2747.21525
B121: A0 | C121: =(C82*$B$112)+C82 -> 2552.71125
B122: A1* | C122: =(C83*$B$112)+C83 -> 2429.5165
B123: B | C123: =(C84*$B$112)+C84 -> 2254.959
B124: B0 | C124: 2202.151
B125: C | C125: 1981.92975
B126: C0 | C126: 1670.873
B127: D | C127: 1461.5475
B128: E | C128: 1109.788
B129: F | C129: 1068.3575
B130: G | C130: 922.65375
B131: H | C131: 818.4215
B132: I | C132: 717.98175
B133: J | C133: 609.92625
B134: K | C134: 492.328
B135: L | C135: 478.429
B136: M | C136: 440.84225
B137: M1* | C137: 388.229
B138: N | C138: 359.775
B139: Ñ | C139: 340.095
B140: O | C140: 297.85475
B141: P | C141: 231.3015
B142: Q | C142: 171.1135
B143: R | C143: 158.41375
B144: S | C144: 140.98875
B145: T | C145: 113.35475
B146: U | C146: 98.154
B147: V | C147: 46.0635
A151: 2023-11-01 | B151: 0.005 | C151: (retroactiu gener-23)
D154: Grup | J154: Grup
D155: 1 | E155: 2 | F155: 3 | G155: 4 | J155: 1 | K155: 2 | L155: 3 | M155: 4
A156: Sou base | D156: 2473.13 | E156: 2152.91 | F156: 1883.9 | G156: 1560.24 | I156: P.Perillositat | J156: 249.13 | K156: 207.64 | L156: 176.15 | M156: 134.81
A157: Millora | D157: 16.44 | E157: 16.09 | F157: 16.43 | G157: 16.37 | I157: Triennis | J157: 64.82 | K157: 54.21 | L157: 54.21 | M157: 54.21
A158: Acord Mesa universitats | D158: 7.98 | E158: 7.98 | F158: 7.98 | G158: 7.98 | I158: Hores extres | J158: 11.54 | K158: 10.33 | L158: 9.12 | M158: 7.6
B161: A | C161: 2760.62
B162: A0 | C162: 2565.17
B163: A1* | C163: 2441.37
B164: B | C164: 2265.95
B165: B0 | C165: 2212.9
B166: C | C166: 1991.59
B167: C0 | C167: 1679.04
B168: D | C168: 1468.68
B169: E | C169: 1115.2
B170: F | C170: 1073.57
B171: G | C171: 927.15
B172: H | C172: 822.42
B173: I | C173: 721.48
B174: J | C174: 612.91
B175: K | C175: 494.72
B176: L | C176: 480.77
B177: M | C177: 442.99
B178: M1* | C178: 390.13
B179: N | C179: 361.52
B180: Ñ | C180: 341.75
B181: O | C181: 299.3
B182: P | C182: 232.42
B183: Q | C183: 171.95
B184: R | C184: 159.19
B185: S | C185: 141.68
B186: T | C186: 113.9
B187: U | C187: 98.63
B188: V | C188: 46.29

Sheet Vacances
A2: Càlcul dies de vacances
A4: 2024-04-01 | B4: Inici període. Ha de ser posterior o igual que el darrer 1 de setembre
A5: 2024-07-31 | B5: Fi període. La data de finalització del contracte
A7: 0 | B7: Dies d'absència en el període: Vagues, permisos sense sou, etc…
A9: 0 | B9: Dies Gaudits de vacances en el període
A11: =ROUNDUP(((A5-A4-A7)*22/365)-A9,0) -> 8 | B11: DIES QUE PERTOQUEN DE VACANCES
A12: DIES HABILS MIRAR SEMPRE CALENDARI
A13: 1,8 DIES HÀBILS PER MES TREBALLAT. AIXÒ CORRESPON ALS 22 DIES HÀBILS PER ANY TREBALLAT.

Sheet calcul dies (hidden)
A1: CALCULS DIES LABORALS NO TOPATS
A3: MERITACIÓ ARROSEGAMENT PAGUES LABORALS NO TOPATS | E3: CÀLCUL DIES VINVULACIÓ
B4: DATA INICI | C4: DATA FI | F4: DIA | G4: MES | H4: ANY | J4: dif mesos | K4: dif dies | L4: total mesos | M4: dies | N4: total dies
A5: TOTAL VINCULACIÓ | B5: ='LABORALS '!B65 ->  | C5: ='LABORALS '!G5 -> 2024-12-31 | E5: INICI VINCULACIÓ | F5: =DAY(B5) ->  | G5: =MONTH(B5) ->  | H5: =YEAR(B5) ->  | J5: =IF(F5>1,-1,0) ->  | K5: =IF(F5=1,-M5,0) ->  | L5: =IF(H5=H6,G6-G5+1,13-G5+G6+(H6-H5-1)*12)+J5+J6 ->  | M5: =IF(G5=1,31-F5,IF(G5=2,28-F5,IF(G5=3,31-F5,IF(G5=4,30-F5,IF(G5=5,31-F5,IF(G5=6,30-F5,IF(G5=7,31-F5,IF(G5=8,31-F5,IF(G5=9,30-F5,IF(G5=10,31-F5,IF(G5=11,30-F5,IF(G5=12,31-F5))))))))))))+1 ->  | N5: =SUM(K5+M5+M6) -> 
A6: PRORROGA | B6: ='LABORALS '!B66 ->  | C6: ='LABORALS '!G5 -> 2024-12-31 | E6: FI VINCULACIÓ | F6: =DAY(C5) -> 31 | G6: =MONTH(C5) -> 12 | H6: =YEAR(C5) -> 2024 | J6: =IF(AND(G6=1,F6=31),0,IF(AND(G6=2,28=F6),0,IF(AND(G6=3,31=F6),0,IF(AND(G6=4,30=F6),0,IF(AND(G6=5,31=F6),0,IF(AND(G6=6,30=F6),0,IF(AND(G6=7,31=F6),0,IF(AND(G6=8,31=F6),0,IF(AND(G6=9,30=F6),0,IF(AND(G6=10,31=F6),0,IF(AND(G6=11,30=F6),0,IF(AND(G6=12,31=F6),0,-1)))))))))))) -> 0 | M6: =IF(AND(G6=1,F6<>31),F6,IF(AND(G6=2,28<>F6),F6,IF(AND(G6=3,31<>F6),F6,IF(AND(G6=4,30<>F6),F6,IF(AND(G6=5,31<>F6),F6,IF(AND(G6=6,30<>F6),F6,IF(AND(G6=7,31<>F6),F6,IF(AND(G6=8,31<>F6),F6,IF(AND(G6=9,30<>F6),F6,IF(AND(G6=10,31<>F6),F6,IF(AND(G6=11,30<>F6),F6,IF(AND(G6=12,31<>F6),F6,0)))))))))))) -> 0
A7: MERITEN | C7: DATA FI
A8: de 01/07 a 30/06 | B8: ='LABORALS '!B68 -> 00:00:00 | C8: ='LABORALS '!C68 -> 2024-12-30 | E8: CÀLCUL DIES PRÒRROGA
A9: de 01/01 a 31/12 | B9: ='LABORALS '!B69 -> 00:00:00 | C9: ='LABORALS '!C69 -> 2024-12-30 | F9: DIA | G9: MES | H9: ANY | J9: dif mesos | K9: dif dies | L9: total mesos | M9: dies | N9: total dies
A10: Indemnització RD | B10: =B5 ->  | C10: ='LABORALS '!C70 -> 2024-12-30 | E10: INICI PRORROGA | F10: =DAY(B6) ->  | G10: =MONTH(B6) ->  | H10: =YEAR(B6) ->  | J10: =IF(F10>1,-1,0) ->  | K10: =IF(F10=1,-M10,0) ->  | L10: =IF(H10=H11,G11-G10+1,13-G10+G11+(H11-H10-1)*12)+J10+J11 ->  | M10: =IF(G10=1,31-F10,IF(G10=2,28-F10,IF(G10=3,31-F10,IF(G10=4,30-F10,IF(G10=5,31-F10,IF(G10=6,30-F10,IF(G10=7,31-F10,IF(G10=8,31-F10,IF(G10=9,30-F10,IF(G10=10,31-F10,IF(G10=11,30-F10,IF(G10=12,31-F10))))))))))))+1 ->  | N10: =SUM(K10+M10+M11) -> 
A11: Període treballat al 2014 | B11: ='LABORALS '!B71 -> 00:00:00 | C11: ='LABORALS '!C71 -> 2014-12-31 | E11: FI VINCULACIÓ | F11: =DAY(C5) -> 31 | G11: =MONTH(C5) -> 12 | H11: =YEAR(C5) -> 2024 | J11: =IF(AND(G11=1,F11=31),0,IF(AND(G11=2,28=F11),0,IF(AND(G11=3,31=F11),0,IF(AND(G11=4,30=F11),0,IF(AND(G11=5,31=F11),0,IF(AND(G11=6,30=F11),0,IF(AND(G11=7,31=F11),0,IF(AND(G11=8,31=F11),0,IF(AND(G11=9,30=F11),0,IF(AND(G11=10,31=F11),0,IF(AND(G11=11,30=F11),0,IF(AND(G11=12,31=F11),0,-1)))))))))))) -> 0 | M11: =IF(AND(G11=1,F11<>31),F11,IF(AND(G11=2,28<>F11),F11,IF(AND(G11=3,31<>F11),F11,IF(AND(G11=4,30<>F11),F11,IF(AND(G11=5,31<>F11),F11,IF(AND(G11=6,30<>F11),F11,IF(AND(G11=7,31<>F11),F11,IF(AND(G11=8,31<>F11),F11,IF(AND(G11=9,30<>F11),F11,IF(AND(G11=10,31<>F11),F11,IF(AND(G11=11,30<>F11),F11,IF(AND(G11=12,31<>F11),F11,0)))))))))))) -> 0
E13: MERITACIÓ PAGA JULIOL
F14: DIA | G14: MES | H14: ANY | J14: dif mesos | K14: dif dies | L14: total mesos | M14: dies | N14: total dies
E15: INICI | F15: =DAY(B8) -> 0 | G15: =MONTH(B8) -> 1 | H15: =YEAR(B8) -> 1900 | J15: =IF(F15>1,-1,0) -> 0 | K15: =IF(F15=1,-M15,0) -> 0 | L15: =IF(H15=H16,G16-G15+1,13-G15+G16+(H16-H15-1)*12)+J15+J16 -> 1499 | M15: =IF(G15=1,31-F15,IF(G15=2,28-F15,IF(G15=3,31-F15,IF(G15=4,30-F15,IF(G15=5,31-F15,IF(G15=6,30-F15,IF(G15=7,31-F15,IF(G15=8,31-F15,IF(G15=9,30-F15,IF(G15=10,31-F15,IF(G15=11,30-F15,IF(G15=12,31-F15))))))))))))+1 -> 32 | N15: =SUM(K15+M15+M16) -> 62
E16: FI | F16: =DAY(C8) -> 30 | G16: =MONTH(C8) -> 12 | H16: =YEAR(C8) -> 2024 | J16: =IF(AND(G16=1,F16=31),0,IF(AND(G16=2,28=F16),0,IF(AND(G16=3,31=F16),0,IF(AND(G16=4,30=F16),0,IF(AND(G16=5,31=F16),0,IF(AND(G16=6,30=F16),0,IF(AND(G16=7,31=F16),0,IF(AND(G16=8,31=F16),0,IF(AND(G16=9,30=F16),0,IF(AND(G16=10,31=F16),0,IF(AND(G16=11,30=F16),0,IF(AND(G16=12,31=F16),0,-1)))))))))))) -> -1 | M16: =IF(AND(G16=1,F16<>31),F16,IF(AND(G16=2,28<>F16),F16,IF(AND(G16=3,31<>F16),F16,IF(AND(G16=4,30<>F16),F16,IF(AND(G16=5,31<>F16),F16,IF(AND(G16=6,30<>F16),F16,IF(AND(G16=7,31<>F16),F16,IF(AND(G16=8,31<>F16),F16,IF(AND(G16=9,30<>F16),F16,IF(AND(G16=10,31<>F16),F16,IF(AND(G16=11,30<>F16),F16,IF(AND(G16=12,31<>F16),F16,0)))))))))))) -> 30
E18: MERITACIÓ PAGA DESEMBRE
F19: DIA | G19: MES | H19: ANY | J19: dif mesos | K19: dif dies | L19: total mesos | M19: dies | N19: total dies
E20: INICI | F20: =DAY(B9) -> 0 | G20: =MONTH(B9) -> 1 | H20: =YEAR(B9) -> 1900 | J20: =IF(F20>1,-1,0) -> 0 | K20: =IF(F20=1,-M20,0) -> 0 | L20: =IF(H20=H21,G21-G20+1,13-G20+G21+(H21-H20-1)*12)+J20+J21 -> 1499 | M20: =IF(G20=1,31-F20,IF(G20=2,28-F20,IF(G20=3,31-F20,IF(G20=4,30-F20,IF(G20=5,31-F20,IF(G20=6,30-F20,IF(G20=7,31-F20,IF(G20=8,31-F20,IF(G20=9,30-F20,IF(G20=10,31-F20,IF(G20=11,30-F20,IF(G20=12,31-F20))))))))))))+1 -> 32 | N20: =SUM(K20+M20+M21) -> 62
E21: FI | F21: =DAY(C9) -> 30 | G21: =MONTH(C9) -> 12 | H21: =YEAR(C9) -> 2024 | J21: =IF(AND(G21=1,F21=31),0,IF(AND(G21=2,28=F21),0,IF(AND(G21=3,31=F21),0,IF(AND(G21=4,30=F21),0,IF(AND(G21=5,31=F21),0,IF(AND(G21=6,30=F21),0,IF(AND(G21=7,31=F21),0,IF(AND(G21=8,31=F21),0,IF(AND(G21=9,30=F21),0,IF(AND(G21=10,31=F21),0,IF(AND(G21=11,30=F21),0,IF(AND(G21=12,31=F21),0,-1)))))))))))) -> -1 | M21: =IF(AND(G21=1,F21<>31),F21,IF(AND(G21=2,28<>F21),F21,IF(AND(G21=3,31<>F21),F21,IF(AND(G21=4,30<>F21),F21,IF(AND(G21=5,31<>F21),F21,IF(AND(G21=6,30<>F21),F21,IF(AND(G21=7,31<>F21),F21,IF(AND(G21=8,31<>F21),F21,IF(AND(G21=9,30<>F21),F21,IF(AND(G21=10,31<>F21),F21,IF(AND(G21=11,30<>F21),F21,IF(AND(G21=12,31<>F21),F21,0)))))))))))) -> 30
E23: CÀLCUL DIES INDEMNITZACIÓ
F24: DIA | G24: MES | H24: ANY | J24: dif mesos | K24: dif dies | L24: total mesos | M24: dies | N24: total dies
E25: INICI | F25: =DAY(B10) ->  | G25: =MONTH(B10) ->  | H25: =YEAR(B10) ->  | J25: =IF(F25>1,-1,0) ->  | K25: =IF(F25=1,-M25,0) ->  | L25: =IF(H25=H26,G26-G25+1,13-G25+G26+(H26-H25-1)*12)+J25+J26 ->  | M25: =IF(G25=1,31-F25,IF(G25=2,28-F25,IF(G25=3,31-F25,IF(G25=4,30-F25,IF(G25=5,31-F25,IF(G25=6,30-F25,IF(G25=7,31-F25,IF(G25=8,31-F25,IF(G25=9,30-F25,IF(G25=10,31-F25,IF(G25=11,30-F25,IF(G25=12,31-F25))))))))))))+1 ->  | N25: =SUM(K25+M25+M26) -> 
E26: FI | F26: =DAY(C10) -> 30 | G26: =MONTH(C10) -> 12 | H26: =YEAR(C10) -> 2024 | J26: =IF(AND(G26=1,F26=31),0,IF(AND(G26=2,28=F26),0,IF(AND(G26=3,31=F26),0,IF(AND(G26=4,30=F26),0,IF(AND(G26=5,31=F26),0,IF(AND(G26=6,30=F26),0,IF(AND(G26=7,31=F26),0,IF(AND(G26=8,31=F26),0,IF(AND(G26=9,30=F26),0,IF(AND(G26=10,31=F26),0,IF(AND(G26=11,30=F26),0,IF(AND(G26=12,31=F26),0,-1)))))))))))) -> -1 | M26: =IF(AND(G26=1,F26<>31),F26,IF(AND(G26=2,28<>F26),F26,IF(AND(G26=3,31<>F26),F26,IF(AND(G26=4,30<>F26),F26,IF(AND(G26=5,31<>F26),F26,IF(AND(G26=6,30<>F26),F26,IF(AND(G26=7,31<>F26),F26,IF(AND(G26=8,31<>F26),F26,IF(AND(G26=9,30<>F26),F26,IF(AND(G26=10,31<>F26),F26,IF(AND(G26=11,30<>F26),F26,IF(AND(G26=12,31<>F26),F26,0)))))))))))) -> 30
E28: CÀLCUL DIES RETALLADA
F29: DIA | G29: MES | H29: ANY | J29: dif mesos | K29: dif dies | L29: total mesos | M29: dies | N29: total dies
E30: INICI | F30: =DAY(B11) -> 0 | G30: =MONTH(B11) -> 1 | H30: =YEAR(B11) -> 1900 | J30: =IF(F30>1,-1,0) -> 0 | K30: =IF(F30=1,-M30,0) -> 0 | L30: =IF(H30=H31,G31-G30+1,13-G30+G31+(H31-H30-1)*12)+J30+J31 -> 1380 | M30: =IF(G30=1,31-F30,IF(G30=2,28-F30,IF(G30=3,31-F30,IF(G30=4,30-F30,IF(G30=5,31-F30,IF(G30=6,30-F30,IF(G30=7,31-F30,IF(G30=8,31-F30,IF(G30=9,30-F30,IF(G30=10,31-F30,IF(G30=11,30-F30,IF(G30=12,31-F30))))))))))))+1 -> 32 | N30: =SUM(K30+M30+M31) -> 32
E31: FI | F31: =DAY(C11) -> 31 | G31: =MONTH(C11) -> 12 | H31: =YEAR(C11) -> 2014 | J31: =IF(AND(G31=1,F31=31),0,IF(AND(G31=2,28=F31),0,IF(AND(G31=3,31=F31),0,IF(AND(G31=4,30=F31),0,IF(AND(G31=5,31=F31),0,IF(AND(G31=6,30=F31),0,IF(AND(G31=7,31=F31),0,IF(AND(G31=8,31=F31),0,IF(AND(G31=9,30=F31),0,IF(AND(G31=10,31=F31),0,IF(AND(G31=11,30=F31),0,IF(AND(G31=12,31=F31),0,-1)))))))))))) -> 0 | M31: =IF(AND(G31=1,F31<>31),F31,IF(AND(G31=2,28<>F31),F31,IF(AND(G31=3,31<>F31),F31,IF(AND(G31=4,30<>F31),F31,IF(AND(G31=5,31<>F31),F31,IF(AND(G31=6,30<>F31),F31,IF(AND(G31=7,31<>F31),F31,IF(AND(G31=8,31<>F31),F31,IF(AND(G31=9,30<>F31),F31,IF(AND(G31=10,31<>F31),F31,IF(AND(G31=11,30<>F31),F31,IF(AND(G31=12,31<>F31),F31,0)))))))))))) -> 0
